Cogmind - Beta 9 @@@ ROGUE MODE // 2019.10.23 @ 20:42:36 Player: Eggking Result: Destroyed by G-47 Trooper with Particle Gun Performance ------------- Evolutions (0) 0 Regions Visited (1) 200 Robots Destroyed (11) 55 Value Destroyed (211) 211 Prototype IDs (0) 0 Alien Tech Used (0) 0 Bonus (0) 0 TOTAL SCORE: 466 Bonus ------- None Cogmind --------- Core Integrity 0/250 Matter 207/300 Energy 100/100 System Corruption 0% Temperature Cool (22) Location -10/Materials Parts ------- Power (1) Propulsion (2) Utility (2) Small Storage Unit Weapon (2) Inventory (6) Light Nuclear Core Compact Wheel Medium Laser Datajack Peak State ------------ Power Light Ion Engine Propulsion Aluminum Leg Aluminum Leg Utility Small Storage Unit Weapon Light Assault Rifle Light Assault Rifle Inventory Light Ion Engine Light Treads Light Treads Wheel Compact Wheel Medium Laser [Rating: 6] Favorites ----------- Power Light Ion Engine Engine Light Ion Engine Propulsion Aluminum Leg Leg Aluminum Leg Wheel Compact Wheel Utility Small Storage Unit Storage Small Storage Unit Weapon Light Assault Rifle Ballistic Gun Light Assault Rifle Launcher Grenade Launcher Special Weapon Mining Laser Build | -11 -10 ------- Run | Scr Mat Slots Evolved . | . . Power . | . . Propulsion . | . . Utility . | . . Weapon . | . . Parts Attached 16 | . 16 Power 3 | . 3 Engine 3 | . 3 Core . | . . Reactor . | . . Propulsion 4 | . 4 Treads . | . . Leg 2 | . 2 Wheel 2 | . 2 Hover . | . . Flight . | . . Utility . | . . Device . | . . Storage . | . . Processor . | . . Hackware . | . . Protection . | . . Artifact . | . . Weapon 9 | . 9 Energy Gun . | . . Energy Cannon . | . . Ballistic Gun 7 | . 7 Ballistic Cannon . | . . Launcher 1 | . 1 Special Weapon 1 | . 1 Impact Weapon . | . . Slashing Weapon . | . . Piercing Weapon . | . . Special Melee Weapon . | . . Unidentified Prototypes . | . . Parts Lost 7 | . 7 Power 2 | . 2 Propulsion 2 | . 2 Utility . | . . Weapon 3 | . 3 Highest Loss Streak 5 | . 5 Average Slot Usage (%) 78 | . 78 Engine 13 | . 13 Leg 24 | . 24 Wheel 2 | . 2 Storage 14 | . 14 Ballistic Gun 22 | . 22 Special Weapon 1 | . 1 Naked Turns . | . . Heaviest Build 10 | 9 10 Greatest Support 26 | 20 26 Greatest Overweight (x) 2 | . 2 Average Overweight (x) . | . . Largest Inventory Capacity 6 | . 6 Average Capacity 6 | . 6 Most Carried 6 | . 6 Average Carried 5 | . 5 Final Capacity 6 | . 6 Final Carried 4 | . 4 Class Distribution -------------------- 100% | Mutant Dominant Class ---------------- Mutant | -10/Materials Resources | -11 -10 ----------- Run | Scr Mat Matter Collected 339 | 192 147 Remotely . | . . Salvage Created 237 | . 237 Parts 20 | . 20 Haulers Intercepted . | . . Recyclers Shooed . | . . Parts Field Recycled . | . . Retrieved Matter . | . . Parts Self-Destructed . | . . Prevented . | . . Kills | -11 -10 ------- Run | Scr Mat Combat Hostiles Destroyed 8 | . 8 Guns 4 | . 4 AOE 4 | . 4 Classes Destroyed 5 | . 5 Worker 1 | . 1 Builder 1 | . 1 Operator 1 | . 1 Swarmer 4 | . 4 Grunt 4 | . 4 Best Kill Streak 5 | . 5 Combat Bots Only 4 | . 4 Max Kills in Single Turn 3 | . 3 Gunslinging . | . . Exploded 3 | . 3 Melee . | . . Uniques/NPCs Destroyed . | . . Combat | -11 -10 -------- Run | Scr Mat Damage Taken 708 | . 708 Core 250 | . 250 Absorbed by Shields . | . . Core Remaining (%) 100 | 100 . Volleys Fired 31 | . 31 Largest 2 | . 2 Hottest 100 | . 100 Shots Fired 42 | . 42 Gun 37 | . 37 Cannon . | . . Launcher 3 | . 3 Special 2 | . 2 Kinetic 37 | . 37 Thermal 2 | . 2 Explosive 3 | . 3 Electromagnetic . | . . Robot Hit Streak 7 | . 7 Robot Miss Streak 2 | . 2 Penetration Max . | . . Secondary Targets . | . . Shots Hit Robots 31 | . 31 Core Hits 17 | . 17 Critical Hits . | . . Critical Kills . | . . Critical Parts Destroyed . | . . Melee Attacks . | . . Impact . | . . Slashing . | . . Piercing . | . . Sneak Attacks . | . . Combat Hostiles . | . . Follow-up Attacks . | . . Damage Inflicted 547 | . 547 Guns 299 | . 299 Cannons . | . . Explosions 248 | . 248 Melee . | . . Ramming . | . . Kinetic 299 | . 299 Thermal . | . . Explosive 248 | . 248 Electromagnetic . | . . Impact . | . . Slashing . | . . Piercing . | . . Highest Corruption . | . . Average Corruption . | . . Corruption Purged . | . . Overload Shots . | . . Overflow Damage 12 | . 12 Projectiles . | . . Explosions 12 | . 12 Melee . | . . Knockbacks . | . . Impact . | . . Kinetic . | . . Secondary . | . . Self-Inflicted Damage 87 | . 87 Shots 3 | . 3 Rammed . | . . Targets Rammed 1 | . 1 Kicked 1 | . 1 Crushed . | . . Highest Temperature 20 | . 20 Average Temperature 8 | . 8 Received Heat Transfer 258 | . 258 Siege Activations . | . . Robots Corrupted . | . . Combat Hostiles . | . . Parts Fried . | . . Impact Corruptions . | . . Robots Melted . | . . Combat Hostiles . | . . Parts Melted . | . . Heat Transferred . | . . Parts Sabotaged . | . . Parts Stolen . | . . Parts Stripped . | . . Power Chain Reactions . | . . Missiles Intercepted . | . . Alert | -11 -10 ------- Run | Scr Mat Peak Influence 96 | . 96 Average Influence 34 | . 34 Maximum Alert Level . | . . Low Security (%) 100 | . . Level 1 . | . . Level 2 . | . . Level 3 . | . . Level 4 . | . . Level 5 . | . . High Security . | . . Max Security . | . . Squads Dispatched 3 | . 3 Investigation 1 | . 1 Extermination . | . . Reinforcement 2 | . 2 Assault . | . . Garrison . | . . Intercept . | . . Construction Impeded . | . . Haulers Reinforced . | . . Stealth | -11 -10 --------- Run | Scr Mat Distress Signals 1 | . 1 Communications Jammed . | . . Distress Signals . | . . Times Spotted 20 | . 20 Peak Tracking Total 13 | . 13 Tactical Retreats 1 | . 1 Traps | -11 -10 ------- Run | Scr Mat Traps Triggered 6 | . 6 Indirectly . | . . Trap Hack Attempts . | . . Triggered . | . . Disarmed . | . . Reprogrammed . | . . Reused . | . . Traps Extracted . | . . Installed . | . . Triggered . | . . Machines | -11 -10 ---------- Run | Scr Mat Machines Disabled . | . . Max in Single Turn . | . . Machines Sabotaged . | . . Garrisons Compromised . | . . Overloaded Fab Kills . | . . Fab Network Shutdowns . | . . Hacking | -11 -10 --------- Run | Scr Mat Machines Accessed 6 | . 6 Terminals 6 | . 6 Fabricators . | . . Repair Stations . | . . Recycling Units . | . . Scanalyzers . | . . Garrison Access . | . . Total Hacks 17 | . 17 Successful 11 | . 11 Failed 6 | . 6 Catastrophic . | . . Database Lockouts . | . . Manual 12 | . 12 Terminals 17 | . 17 Fabricators . | . . Repair Stations . | . . Recycling Units . | . . Scanalyzers . | . . Garrison Access . | . . Terminal Hacks 3 | . 3 Locate Traps 2 | . 2 Zone Layout 1 | . 1 Fabricator Hacks . | . . Repair Station Hacks . | . . Recycling Unit Hacks . | . . Scanalyzer . | . . Garrison Access Hacks . | . . Unauthorized Hacks 20 | . 20 Terminals 8 | . 8 Track 3 | . 3 Botnet 5 | . 5 Fabricators . | . . Repair Stations . | . . Recycling Units . | . . Scanalyzers . | . . Garrison Access . | . . Data Cores Recovered 1 | . 1 Used . | . . Hacking Detections 4 | . 4 Full Trace Events 1 | . 1 Feedback Events . | . . Feedback Blocked . | . . Robot Schematics Acquired . | . . Robots Built . | . . Matter . | . . Time . | . . Total Robot Build Rating . | . . Part Schematics Acquired . | . . Parts Built . | . . Matter . | . . Time . | . . Total Part Build Rating . | . . Parts Repaired . | . . Time . | . . Parts Recycled . | . . Recycled Matter . | . . Retrieved Matter . | . . Retrieved Components . | . . Parts Scanalyzed . | . . Part Schematics Acquired . | . . Parts Damaged . | . . Bothacking | -11 -10 ------------ Run | Scr Mat Used RIF Installer . | . . Robots Hacked . | . . Non-combat . | . . Combat . | . . Robot Hacks Applied . | . . Relay Couplers Released . | . . Robots Rewired . | . . Allies Hacked . | . . Hacks Repelled . | . . Allies | -11 -10 -------- Run | Scr Mat Total Allies . | . . Largest Group . | . . Highest-Rated Group . | . . Highest-Rated Ally . | . . Total Orders . | . . Ally Attacks . | . . Total Damage . | . . Kills . | . . Allies Corrupted . | . . Allies Melted . | . . Intel | -11 -10 ------- Run | Scr Mat Robot Analysis Total . | . . Derelict Logs Recovered . | . . Drone Launches . | . . Drone Recoveries . | . . Exploration | -11 -10 ------------- Run | Scr Mat Turns Passed 590 | . 590 Spaces Moved 406 | 1 405 Core 5 | . 5 Treads . | . . Legs 351 | 1 350 Wheels 50 | . 50 Hover . | . . Flight . | . . Fastest Speed 80 | 120 80 Average Speed 116 | 120 116 Slowest Speed 150 | 120 150 Overloaded Moves . | . . Propulsion Burnouts . | . . Robots Hopped . | . . Cave-ins Triggered . | . . Exploration Rate (%) 36 | 1 72 Regions Visited 1 Branch Regions . Pre-discovered Areas . | . . Known Exits Taken . | . . Unknown Exits Taken 1 | 1 . Scrap Searched . | . . Spaces Dug 2 | . 2 Terrain Destroyed 14 | . 14 Melee . | . . Projectile 2 | . 2 AOE 12 | . 12 Actions | -11 -10 --------- Run | Scr Mat Total 478 | . 478 Wait 16 | . 16 Move 405 | . 405 Hop . | . . Pick Up 3 | . 3 Fast Attach 13 | . 13 Attach 3 | . 3 Detach . | . . Swap . | . . Drop 6 | . 6 Fire 31 | . 31 Melee . | . . Ram . | . . Kick 1 | . 1 Crush . | . . Escape Stasis . | . . Rewire . | . . Trap . | . . Miscellaneous . | . . Route ------- -11/Scrapyard -10/Materials (discovered 3 exits: [*Mat x2] / [*Min]) History --------- Turn | Location | Event 1 | -11/Scrapyard | Discovered new exit (range 0) 1 | -11/Scrapyard | Entered Materials 116 | -10/Materials | Discovered new exit (range 16) 300 | -10/Materials | Build established: Mutant 345 | -10/Materials | Discovered new exit (range 7) 578 | -10/Materials | Discovered new exit (range 16) 584 | -10/Materials | Core integrity fell below 50% 589 | -10/Materials | Core integrity fell below 20% 591 | -10/Materials | Destroyed by G-47 Trooper with Particle Gun Last Messages --------------- 00527_ Acquired 41 matter. 00529_ Acquired Lgt. Nuclear Core. 00531_ Kicked K-01 Serf out of the way. 00532_ Acquired 50 matter. 00536_ Dropped Aluminum Leg. 00539_ Acquired Com. Wheel. 00542_ R-06 Scavenger collects Aluminum Leg. 00573_ Assault Rifle destroyed. 00577_ ALERT: Hostiles spotted, dispatching reinforcements to Terminal M002. 00578_ EXIT=FOUND 00581_ Wheel destroyed. 00586_ S-10 Pest destroyed. 00586_ Com. Wheel destroyed. 00586_ Destroyed Com. Wheel. 00586_ S-10 Pest destroyed. 00586_ Lgt. Ion Engine destroyed. 00588_ K-01 Serf destroyed. 00590_ S-10 Pest destroyed. 00590_ Grenade Launcher destroyed. Map ----- +----------------------------------------------------+ | ####### # """"""" ## # # | | ???????####### """"""" ## # # | | ????????????############# # """ # | | ????????????# # """ # | | ????????????# # """ # | | ????????????# # # | | ????????????# === + """ # | | ????????????# === === # """ # | | ???????????## == == # """ # | | ?????????? == # # | | ?????????? ####### | | ?????????? #####?? | | ???????????############k !!#?? | | ???????????????# ] ?# !!#?? | | ???????????????# # !!#?? | | ???????????????# #gg !!#?? | | ???????????????# o + **#?? | | ???????????????# "T" # **#?? | | ???????????????# """ # g ######? | | ???????????????####### #? | | ???????????????????#?? g #? | | ???????????????????# ## #? | | ??????????????????### %s #s #? | | ??????????????????# #? | | ??????????????????# [! [ #? | | ??????????????????# !! @% #? | | ??????????????????# ! = #? | | ??????????????????# #? | | ??????????????????# # #? | | ??????????????????# ^ # g #? | | ??????????????????# # #? | | ??????????????????# # #? | | ??????????????????########## #? | | ???????????????????????????# #? | | ???????????????????????????# #? | | ???????????????????????????# #? | | ???????????????????????????# #? | | ???????????????????????????? < #? | | ???????????????????????????? #? | | ????????????????????????????####? | | ????????????????????????????????? | | ????????????????????????????????? | | ????????????????????????????????? | | ????????????????????????????????? | | ????????????????????????????????? | | ????????????????????????????????? | | ????????????????????????????????? | | ????????????????????????????????? | | ????????????????????????????????? | | | +----------------------------------------------------+ Best States ------------- Heat Dissipation 25 Energy Generation 10 Energy Capacity 125 Matter Stores 300 Matter Capacity 300 Sight Range 16 Terrain Scan Density 10 Evasion (%) 44 Item Schematics ----------------- None Robot Schematics ------------------ None Fabricated ------------ Nothing Alien Tech Used ----------------- None Achievements -------------- None Challenges ------------ None Game ------ Seed ShockImpactRouter Manual? 0 Play Time 00:14:26 Cumulative 301.4 hours Start 2019.10.23 @ 20:32:23 End 2019.10.23 @ 20:42:36 Sessions 1 Manual Loads 0 Difficulty Rogue Special Mode None Game No. 29 Rogue 29 Adventurer 0 Explorer 0 Win Type - Total 0 Types 0/0/0/0/0/0/0 Lore% 11 Gallery% 34 Achievement% 15 Wizard Run 0 Options --------- ASCII 0 Keyboard 0 Movement Numpad Keybinds 0 Fullscreen 1 Font 18/SmallcapsGlow Map View 76x50 Tactical HUD 1 Map Filters NONE Filters NONE Steam 1 RUN: 58168eb7-3dfc-4b47-bbfb-4cef1e9f4064